bitfinex/quotes_ETHUSD_20250906
["timestamp","ask_amount","ask_price","bid_price","bid_amount"]
[1757128876242,222.39350312,4314.5,4314.4,23.72284735]
[1757128879089,223.52510312,4314.5,4314.4,7.54284735]
[1757128880526,223.34110312,4314.5,4314.4,7.54284735]
[1757128883828,222.10010312,4314.5,4314.4,7.54284735]
[1757128884033,224.46701109,4314.5,4314.4,7.54284735]
[1757128884328,225.41461109,4314.5,4314.4,7.54284735]
[1757128884973,224.36801109,4314.5,4314.4,7.54284735]
[1757128885448,224.36801109,4314.5,4314.4,23.72184735]
[1757128885974,225.41461109,4314.5,4314.4,23.72184735]
[1757128887136,219.21448152,4314.5,4314.4,23.72184735]
[1757128889977,219.21448152,4314.5,4314.4,20.95484735]
[1757128892006,219.21448152,4314.5,4314.4,9.24584735]
[1757128893300,219.11548152,4314.5,4314.4,9.24584735]
[1757128893860,219.11548152,4314.5,4314.4,7.54284735]
[1757128895420,219.11548152,4314.5,4314.4,16.69684735]
[1757128895601,219.11548152,4314.5,4314.4,23.72184735]
[1757128896975,216.84757355,4314.5,4314.4,23.72184735]
[1757128897375,216.94657355,4314.5,4314.4,23.72184735]
[1757128899015,216.84757355,4314.5,4314.4,24.45954735]
[1757128899976,216.84757355,4314.5,4314.4,8.28054735]
[1757128901512,216.94657355,4314.5,4314.4,7.54284735]
[1757128901712,219.21448152,4314.5,4314.4,7.54284735]
[1757128902109,216.94657355,4314.5,4314.4,7.54284735]
[1757128902488,216.84757355,4314.5,4314.4,7.54284735]
[1757128903593,216.94937355,4314.5,4314.4,7.54284735]
[1757128903978,216.84757355,4314.5,4314.4,8.31334735]
[1757128904321,216.84757355,4314.5,4314.4,9.31564735]
[1757128905517,216.84757355,4314.5,4314.4,25.49464735]
[1757128909984,216.84757355,4314.5,4314.4,9.31564735]
[1757128912925,216.84757355,4314.5,4314.4,8.31334735]
[1757128914705,216.84757355,4314.5,4314.4,9.31564735]
[1757128915429,216.84757355,4314.5,4314.4,25.49464735]
[1757128916140,216.84757355,4314.5,4314.4,21.72534735]
[1757128916346,216.84757355,4314.5,4314.4,15.33834735]
[1757128917943,216.84757355,4314.5,4314.4,10.01634735]
[1757128918148,216.84757355,4314.5,4314.4,7.83864735]
[1757128918453,216.84757355,4314.5,4314.4,40.40129674]
[1757128918609,216.84757355,4314.5,4314.4,40.51649674]
[1757128918815,216.37257355,4314.5,4314.4,45.3329473]
[1757128919132,214.45121205,4314.5,4314.4,45.5643473]
[1757128919334,213.80412606,4314.5,4314.4,42.66892835]
[1757128919508,213.13593514,4314.5,4314.4,42.66892835]
[1757128919948,212.78878123,4314.5,4314.4,42.66892835]
[1757128920148,210.331,4314.5,4314.4,45.10492835]
[1757128920350,208.28070583,4314.5,4314.4,45.10492835]
[1757128920525,199.11520631,4314.5,4314.4,45.10492835]
[1757128920727,162.08540076,4314.5,4314.4,45.10492835]
[1757128920950,148.27979548,4314.5,4314.4,45.10492835]
[1757128921150,133.47613581,4314.5,4314.4,42.66892835]
[1757128921452,128.8889819,4314.5,4314.4,42.43752835]
[1757128921811,128.54182799,4314.5,4314.4,42.43752835]
[1757128922155,128.19467408,4314.5,4314.4,42.43752835]
[1757128922542,127.84752017,4314.5,4314.4,42.43752835]
[1757128922944,127.50036626,4314.5,4314.4,42.43752835]
[1757128923553,126.57433499,4314.5,4314.4,42.43752835]
[1757128924406,126.57433499,4314.5,4314.4,12.43752835]
[1757128924611,126.57433499,4314.5,4314.4,42.43752835]
[1757128925468,126.57433499,4314.5,4314.4,61.37952835]
[1757128925948,126.22739306,4314.5,4314.4,61.37952835]
[1757128927520,126.22739306,4314.5,4314.4,55.84552835]
[1757128929755,125.88045113,4314.5,4314.4,43.66482835]
[1757128930247,125.88045113,4314.5,4314.4,42.83314735]
[1757128930446,125.88045113,4314.5,4314.4,41.13114735]
[1757128932461,125.88045113,4314.5,4314.4,41.42479674]
[1757128932672,125.88045113,4314.5,4314.4,11.42479674]
[1757128932850,125.88045113,4314.5,4314.4,41.42479674]
[1757128935367,125.88045113,4314.5,4314.4,46.95679674]
[1757128935537,125.88045113,4314.5,4314.4,60.06914735]
[1757128936637,125.88045113,4314.5,4314.4,54.53714735]
[1757128936833,125.88045113,4314.5,4314.4,41.13114735]
[1757128937074,125.88045113,4314.5,4314.4,41.71833791]
[1757128937846,125.53348191,4314.5,4314.4,41.95682835]
[1757128938356,124.63651269,4314.5,4314.4,42.84162835]
[1757128938552,122.32291626,4314.5,4314.4,42.95682835]
[1757128938752,121.97594704,4314.5,4314.4,42.95682835]
[1757128939142,119.31505982,4314.5,4314.4,44.14478709]
[1757128939361,117.88505982,4314.5,4314.4,42.95682835]
[1757128939563,113.84633158,4314.5,4314.4,42.95682835]
[1757128939944,113.49943217,4314.5,4314.4,42.95682835]
[1757128940497,113.15253276,4314.5,4314.4,42.95682835]
[1757128940685,112.80563335,4314.5,4314.4,42.95682835]
[1757128941089,112.45873394,4314.5,4314.4,42.95682835]
[1757128941588,112.11183453,4314.5,4314.4,42.95682835]
[1757128941769,111.76493512,4314.5,4314.4,38.82128718]
[1757128941960,111.76493512,4314.5,4314.4,42.36863779]
[1757128942163,111.41803571,4314.5,4314.4,42.66228718]
[1757128942483,111.41803571,4314.5,4314.4,42.95582835]
[1757128942653,111.0711363,4314.5,4314.4,42.95582835]
[1757128943173,110.72423689,4314.5,4314.4,42.95582835]
[1757128943482,110.37733748,4314.5,4314.4,42.95582835]
[1757128943881,110.03043807,4314.5,4314.4,42.95582835]
[1757128944289,109.68353866,4314.5,4314.4,42.95582835]
[1757128944662,109.33663925,4314.5,4314.4,42.95582835]
[1757128944996,108.98973984,4314.5,4314.4,41.95582835]
[1757128945520,108.64284043,4314.5,4314.4,55.45918718]
[1757128945798,109.43034043,4314.5,4314.4,58.76804735]
[1757128946096,108.99282209,4314.5,4314.4,53.68906941]
[1757128946294,108.51932209,4314.5,4314.4,53.3072]
[1757128946453,108.51932209,4314.5,4314.4,43.85235441]
[1757128946658,108.51932209,4314.5,4314.4,38.53335441]
[1757128947959,109.30682209,4314.5,4314.4,37.14435441]
[1757128948194,108.51932209,4314.5,4314.4,42.4152038]
[1757128948494,108.51932209,4314.5,4314.4,41.00674497]
[1757128948893,109.30682209,4314.5,4314.4,38.44235441]
[1757128949099,109.30682209,4314.5,4314.4,42.5642467]
[1757128950294,108.51932209,4314.5,4314.4,42.5642467]
[1757128950598,108.51932209,4314.5,4314.4,44.83509609]
[1757128951108,108.51932209,4314.5,4314.4,44.83429609]
[1757128951398,108.51932209,4314.5,4314.4,43.83429609]
[1757128951923,108.99282209,4314.5,4314.4,42.85789609]
[1757128954525,108.99282209,4314.5,4314.4,43.85789609]
[1757128954731,108.51932209,4314.5,4314.4,44.83509609]
[1757128955429,108.51932209,4314.5,4314.4,59.6492038]
[1757128955731,87.75291026,4314.5,4314.4,37.17438526]
[1757128955916,85.43904538,4314.5,4314.4,37.17438526]
[1757128956117,63.35086212,4314.5,4314.4,37.17438526]
[1757128956306,54.67699669,4314.5,4314.4,36.88084409]
[1757128956629,52.55699669,4314.5,4314.4,36.88084409]
[1757128956819,52.55699669,4314.5,4314.4,40.72584409]
[1757128957534,52.55699669,4314.5,4314.4,41.81138526]
[1757128958119,52.55699669,4314.5,4314.4,11.81138526]
[1757128958319,52.55699669,4314.5,4314.4,41.81138526]
[1757128960822,52.55699669,4314.5,4314.4,40.12884409]
[1757128961399,52.55699669,4314.5,4314.4,39.15164409]
[1757128961836,52.55699669,4314.5,4314.4,40.43914409]
[1757128962146,52.55699669,4314.5,4314.4,10.43914409]
[1757128962353,52.55699669,4314.5,4314.4,40.43914409]
[1757128964057,53.32899669,4314.5,4314.4,39.15164409]
[1757128964269,53.32899669,4314.5,4314.4,38.91315365]
[1757128964435,53.02769669,4314.5,4314.4,38.91315365]
[1757128964956,52.55699669,4314.5,4314.4,38.91315365]
[1757128965253,53.32899669,4314.5,4314.4,38.91315365]
[1757128965455,53.02769669,4314.5,4314.4,57.84515365]
[1757128965762,53.02769669,4314.5,4314.4,56.96035365]
[1757128966361,53.02769669,4314.5,4314.4,26.96035365]
[1757128966560,53.32899669,4314.5,4314.4,58.03396657]
[1757128966720,53.32899669,4314.5,4314.4,42.18936596]
[1757128967122,53.32899669,4314.5,4314.4,38.34536596]
[1757128967460,54.69209669,4314.5,4314.4,41.86596657]
[1757128967824,53.32899669,4314.5,4314.4,42.18836596]
[1757128968257,53.32899669,4314.5,4314.4,38.05510365]
[1757128968461,53.32899669,4314.5,4314.4,8.05510365]
[1757128968776,53.32899669,4314.5,4314.4,38.05510365]
[1757128968980,53.32899669,4314.5,4314.4,42.18836596]
[1757128969337,54.69209669,4314.5,4314.4,42.18836596]
[1757128970658,53.32899669,4314.5,4314.4,42.18836596]
[1757128971065,54.69209669,4314.5,4314.4,42.18836596]
[1757128971451,54.69209669,4314.5,4314.4,7.73270426]
[1757128971654,54.69209669,4314.5,4314.4,38.05510365]
[1757128971967,53.32899669,4314.5,4314.4,38.05510365]
[1757128972879,53.32899669,4314.5,4314.4,37.73270426]
[1757128973285,54.69209669,4314.5,4314.4,33.88970426]
[1757128973580,54.69209669,4314.5,4314.4,37.73270426]
[1757128975346,54.69209669,4314.5,4314.4,49.64470426]
[1757128975657,54.69209669,4314.5,4314.4,56.66570426]
[1757128979279,54.69209669,4314.5,4314.4,51.13570426]
[1757128981398,54.69209669,4314.5,4314.4,39.43470426]
[1757128982296,53.32899669,4314.5,4314.4,39.43470426]
[1757128982895,54.69209669,4314.5,4314.4,39.43470426]
[1757128983313,53.32899669,4314.5,4314.4,37.73270426]
[1757128983688,53.32899669,4314.5,4314.4,38.05510365]
[1757128985015,52.55699669,4314.5,4314.4,39.34340365]
[1757128985201,52.55699669,4314.5,4314.4,39.87543526]
[1757128985375,52.55699669,4314.5,4314.4,57.10943526]
[1757128985578,52.55699669,4314.5,4314.4,58.81143526]
[1757128987496,52.55699669,4314.5,4314.4,53.27943526]
[1757128988098,53.02769669,4314.5,4314.4,51.99113526]
[1757128988480,52.55699669,4314.5,4314.4,51.99113526]
[1757128988680,52.55699669,4314.5,4314.4,53.27943526]
[1757128988908,52.55699669,4314.5,4314.4,23.27943526]
[1757128989121,52.55699669,4314.5,4314.4,53.27943526]
[1757128991635,53.31279669,4314.5,4314.4,37.9711947]
[1757128991836,53.31279669,4314.5,4314.4,33.88970426]
[1757128991985,54.85739669,4314.5,4314.4,37.73070426]
[1757128992188,53.31279669,4314.5,4314.4,37.73070426]
[1757128993829,52.55699669,4314.5,4314.4,38.34664482]
[1757128994420,52.55699669,4314.5,4314.4,39.84974482]
[1757128995011,52.55699669,4314.5,4314.4,39.84894482]
[1757128995520,52.55699669,4314.5,4314.4,57.28264482]
[1757128995724,53.31279669,4314.5,4314.4,57.28264482]
[1757128998540,53.01459669,4314.5,4314.4,57.28264482]
[1757128999241,52.55699669,4314.5,4314.4,57.28264482]
[1757128999444,52.55699669,4314.5,4314.4,58.78494482]
[1757128999740,52.55699669,4314.5,4314.4,41.55094482]
[1757128999917,53.01459669,4314.5,4314.4,38.34664482]
[1757129004153,53.31279669,4314.5,4314.4,38.34664482]
[1757129005444,53.31279669,4314.5,4314.4,27.28264482]
[1757129005762,53.31279669,4314.5,4314.4,54.51664482]
[1757129005928,53.31279669,4314.5,4314.4,51.75064482]
[1757129007467,54.85739669,4314.5,4314.4,40.73464482]
[1757129007648,58.55530466,4314.5,4314.4,27.01181952]
[1757129007822,58.55530466,4314.5,4314.4,30.85481952]
[1757129008024,58.55530466,4314.5,4314.4,33.85481952]
[1757129008241,58.55530466,4314.5,4314.4,30.85481952]
[1757129008441,58.55530466,4314.5,4314.4,33.843]
[1757129008680,58.55530466,4314.5,4314.4,29.69076876]
[1757129009182,58.55530466,4314.5,4314.4,32.69076876]
[1757129009479,58.55530466,4314.5,4314.4,33.0]
[1757129009976,58.55530466,4314.5,4314.4,36.844]
[1757129012566,58.55530466,4314.5,4314.4,6.844]
[1757129012743,58.55530466,4314.5,4314.4,36.844]
[1757129013598,58.55530466,4314.5,4314.4,6.844]
[1757129013900,58.55530466,4314.5,4314.4,36.845]
[1757129014664,58.55530466,4314.5,4314.4,6.845]
[1757129014895,58.55530466,4314.5,4314.4,36.845]
[1757129015466,58.55530466,4314.5,4314.4,55.783]
[1757129015766,54.74279669,4314.5,4314.4,55.783]
[1757129016305,54.74279669,4314.5,4314.4,43.867]
[1757129016490,54.74279669,4314.5,4314.4,36.845]
[1757129020700,54.74279669,4314.5,4314.4,6.845]
[1757129020914,54.74279669,4314.5,4314.4,36.845]
[1757129021711,54.74279669,4314.5,4314.4,6.845]
[1757129021922,54.74279669,4314.5,4314.4,36.845]
[1757129023718,55.54296633,4314.5,4314.4,36.845]
[1757129025617,55.54296633,4314.5,4314.4,50.253]
[1757129025813,54.74279669,4314.5,4314.4,43.868]
[1757129027123,54.28519669,4314.5,4314.4,38.547]
[1757129027287,54.71679669,4314.5,4314.4,38.547]
[1757129027803,54.71679669,4314.5,4314.4,8.547]
[1757129028017,54.71679669,4314.5,4314.4,38.547]
[1757129031238,54.71679669,4314.5,4314.4,36.845]
[1757129035403,54.71679669,4314.5,4314.4,55.787]
[1757129036034,53.98699669,4314.5,4314.4,57.5407]
[1757129036204,53.98699669,4314.5,4314.4,53.19294056]
[1757129036405,53.98699669,4314.5,4314.4,42.18133437]
[1757129036638,52.47059669,4314.5,4314.4,41.27133437]
[1757129036806,52.47059669,4314.5,4314.4,41.50982481]
[1757129038146,52.47059669,4314.5,4314.4,11.50982481]
[1757129038359,52.47059669,4314.5,4314.4,41.50982481]
[1757129042760,52.47059669,4314.5,4314.4,41.74122481]
[1757129043830,52.47059669,4314.5,4314.4,41.44768364]
[1757129044249,52.47059669,4314.5,4314.4,11.44768364]
[1757129044451,52.47059669,4314.5,4314.4,36.59378425]
[1757129044660,52.47059669,4314.5,4314.4,40.65439381]
[1757129045360,52.47059669,4314.5,4314.4,46.18639381]
[1757129045551,52.47059669,4314.5,4314.4,56.82639381]
[1757129046329,52.47059669,4314.5,4314.4,56.37129381]
[1757129046722,52.47059669,4314.5,4314.4,56.82639381]
[1757129048984,52.47059669,4314.5,4314.4,56.37129381]
[1757129049123,52.47059669,4314.5,4314.4,53.60529381]
[1757129050250,52.47059669,4314.5,4314.4,52.16059381]
[1757129050437,52.47059669,4314.5,4314.4,53.66639381]
[1757129050928,53.21649669,4314.5,4314.4,51.85159381]
[1757129051128,53.21649669,4314.5,4314.4,39.35459381]
[1757129051323,52.47059669,4314.5,4314.4,41.16589381]
[1757129051730,52.76039669,4314.5,4314.4,37.65259381]
[1757129051936,53.21649669,4314.5,4314.4,37.65259381]
[1757129052769,53.21649669,4314.5,4314.4,37.88399381]
[1757129052947,53.21649669,4314.5,4314.4,37.65259381]
[1757129053364,53.21649669,4314.5,4314.4,34.65359381]
[1757129053563,54.67879669,4314.5,4314.4,34.65359381]
[1757129054051,53.21649669,4314.5,4314.4,37.65359381]
[1757129055585,53.21649669,4314.5,4314.4,56.59159381]
[1757129055883,52.47059669,4314.5,4314.4,46.48689381]
[1757129056101,52.47059669,4314.5,4314.4,46.8092932]
[1757129056889,52.47059669,4314.5,4314.4,45.3034932]
[1757129057128,52.47059669,4314.5,4314.4,44.98109381]
[1757129057758,52.47059669,4314.5,4314.4,39.35559381]
[1757129057964,52.76039669,4314.5,4314.4,39.35559381]
[1757129061489,52.47059669,4314.5,4314.4,39.35559381]
[1757129061853,52.76039669,4314.5,4314.4,37.65359381]
[1757129064651,52.47059669,4314.5,4314.4,37.65359381]
[1757129065389,52.47059669,4314.5,4314.4,49.56959381]
[1757129065581,52.47059669,4314.5,4314.4,56.59159381]
[1757129066100,52.47059669,4314.5,4314.4,46.48689381]
[1757129066455,52.47059669,4314.5,4314.4,46.91999381]
[1757129066657,52.47059669,4314.5,4314.4,39.7872932]
[1757129066957,52.47059669,4314.5,4314.4,40.51393437]
[1757129068598,52.47059669,4314.5,4314.4,40.2203932]
[1757129070279,52.47059669,4314.5,4314.4,39.7872932]
[1757129073898,52.47059669,4314.5,4314.4,41.0123932]
[1757129074104,52.47059669,4314.5,4314.4,41.30593437]
[1757129075108,52.47059669,4314.5,4314.4,41.0123932]
[1757129075274,52.47059669,4314.5,4314.4,40.5792932]
[1757129075475,52.47059669,4314.5,4314.4,59.5172932]
[1757129075989,52.47059669,4314.5,4314.4,57.1843932]
[1757129077309,52.47059669,4314.5,4314.4,56.7512932]
[1757129078911,52.47059669,4314.5,4314.4,26.7512932]
[1757129079115,52.47059669,4314.5,4314.4,56.7512932]
[1757129079915,52.47059669,4314.5,4314.4,47.6012932]
[1757129081892,52.47059669,4314.5,4314.4,42.2812932]
[1757129083380,52.47059669,4314.5,4314.4,42.7335932]
[1757129083605,52.47059669,4314.5,4314.4,41.95889381]
[1757129084725,52.78339669,4314.5,4314.4,40.14759381]
[1757129085224,52.78339669,4314.5,4314.4,38.44559381]
[1757129085386,52.78339669,4314.5,4314.4,57.38359381]
[1757129085586,52.47059669,4314.5,4314.4,57.38359381]
[1757129086321,52.78339669,4314.5,4314.4,57.38359381]
[1757129086622,53.24099669,4314.5,4314.4,57.38359381]
[1757129086922,52.78339669,4314.5,4314.4,57.38359381]
[1757129087617,53.24099669,4314.5,4314.4,57.38359381]
[1757129088928,52.78339669,4314.5,4314.4,57.38359381]
[1757129089095,52.78339669,4314.5,4314.4,54.61759381]
[1757129091125,52.47059669,4314.5,4314.4,51.85159381]
[1757129091308,52.47059669,4314.5,4314.4,52.14159381]
[1757129092232,52.47059669,4314.5,4314.4,53.58019381]
[1757129092427,52.47059669,4314.5,4314.4,54.3548932]
[1757129092931,52.47059669,4314.5,4314.4,40.9488932]
[1757129093296,52.47059669,4314.5,4314.4,40.4965932]
[1757129093496,52.47059669,4314.5,4314.4,41.24243437]
[1757129095427,52.47059669,4314.5,4314.4,57.41443437]
[1757129096015,52.47059669,4314.5,4314.4,48.26443437]
[1757129096244,52.47059669,4314.5,4314.4,42.94443437]
[1757129098253,52.47059669,4314.5,4314.4,41.24243437]
[1757129098628,52.47059669,4314.5,4314.4,40.79013437]
[1757129098813,52.78339669,4314.5,4314.4,34.9239932]
[1757129099014,52.78339669,4314.5,4314.4,38.7639932]
[1757129100720,52.78339669,4314.5,4314.4,38.44159381]
[1757129101743,53.24099669,4314.5,4314.4,38.44159381]
[1757129102118,52.78339669,4314.5,4314.4,38.44159381]
[1757129103451,52.47059669,4314.5,4314.4,8.44159381]
[1757129103634,52.47059669,4314.5,4314.4,38.73159381]
[1757129105463,52.47059669,4314.5,4314.4,57.66959381]
[1757129106761,52.47059669,4314.5,4314.4,27.66959381]
[1757129106967,52.47059669,4314.5,4314.4,59.4305932]
[1757129107179,52.47059669,4314.5,4314.4,60.17643437]
[1757129108228,52.47059669,4314.5,4314.4,41.23843437]
[1757129109565,52.47059669,4314.5,4314.4,41.25933437]
[1757129111768,52.47059669,4314.5,4314.4,40.93693498]
[1757129112768,52.47059669,4314.5,4314.4,41.25933437]
[1757129113577,52.47059669,4314.5,4314.4,42.64833437]
[1757129113778,52.47059669,4314.5,4314.4,42.87973437]
[1757129114846,52.47059669,4314.5,4314.4,42.40653437]
[1757129115050,52.47059669,4314.5,4314.4,42.87973437]
[1757129115331,52.47059669,4314.5,4314.4,48.41173437]
[1757129115558,52.47059669,4314.5,4314.4,61.81773437]
[1757129119278,52.47059669,4314.5,4314.4,56.28573437]
[1757129119964,52.47059669,4314.5,4314.4,26.28573437]
[1757129120141,52.47059669,4314.5,4314.4,56.28573437]
[1757129121143,52.47059669,4314.5,4314.4,42.87973437]
[1757129125372,52.47059669,4314.5,4314.4,54.79473437]
[1757129125683,52.47059669,4314.5,4314.4,61.81573437]
[1757129127083,52.47059669,4314.5,4314.4,59.04973437]
[1757129127665,52.47059669,4314.5,4314.4,56.28373437]
[1757129127861,52.12368204,4314.5,4314.4,42.87973437]
[1757129128969,49.79014659,4314.5,4314.4,43.71769311]
[1757129129272,49.44323194,4314.5,4314.4,43.71769311]
[1757129129586,49.09631729,4314.5,4314.4,43.71769311]
[1757129129951,48.74940264,4314.5,4314.4,43.71769311]
[1757129130366,48.40248799,4314.5,4314.4,43.71769311]
[1757129130753,48.05557334,4314.5,4314.4,43.71769311]
[1757129131175,47.70865869,4314.5,4314.4,13.71769311]
[1757129131384,47.70865869,4314.5,4314.4,43.71769311]
[1757129131571,47.36174404,4314.5,4314.4,47.85095542]
[1757129131952,47.01482939,4314.5,4314.4,43.54325542]
[1757129132154,47.01482939,4314.5,4314.4,47.85545542]
[1757129132459,46.66791474,4314.5,4314.4,43.72219311]
[1757129132656,46.32102015,4314.5,4314.4,43.72219311]
[1757129132856,46.32102015,4314.5,4314.4,43.42865194]
[1757129133056,45.97412556,4314.5,4314.4,43.42865194]
[1757129133511,45.62723097,4314.5,4314.4,43.42865194]
[1757129135460,45.62723097,4314.5,4314.4,62.36465194]
[1757129136400,45.62723097,4314.5,4314.4,32.36465194]
[1757129136694,45.62723097,4314.5,4314.4,62.36465194]
[1757129137098,45.62723097,4314.5,4314.4,66.49791425]
[1757129138506,45.62723097,4314.5,4314.4,36.49791425]
[1757129138702,45.62723097,4314.5,4314.4,66.49791425]
[1757129139002,45.62723097,4314.5,4314.4,54.58291425]
[1757129139498,45.62723097,4314.5,4314.4,24.58291425]
[1757129139702,45.62723097,4314.5,4314.4,54.58291425]
[1757129141904,45.62723097,4314.5,4314.4,52.05321486]
[1757129142088,45.62723097,4314.5,4314.4,48.21421486]
[1757129142294,46.37093097,4314.5,4314.4,52.05321486]
[1757129142810,45.91393097,4314.5,4314.4,48.24235194]
[1757129143135,45.91393097,4314.5,4314.4,41.22135194]
[1757129144005,46.37093097,4314.5,4314.4,37.38235194]
[1757129144218,46.37093097,4314.5,4314.4,41.22135194]
[1757129145505,46.37093097,4314.5,4314.4,60.15435194]
[1757129145704,47.70673097,4314.5,4314.4,51.85435255]
[1757129145907,47.70673097,4314.5,4314.4,49.32539381]
[1757129146132,47.70673097,4314.5,4314.4,41.41639381]
[1757129146641,47.70673097,4314.5,4314.4,11.41639381]
[1757129146806,47.70673097,4314.5,4314.4,41.41639381]
[1757129148139,47.70673097,4314.5,4314.4,39.71439381]
[1757129149003,47.70673097,4314.5,4314.4,37.53339381]
[1757129150012,47.70673097,4314.5,4314.4,38.32539381]
[1757129153471,47.70673097,4314.5,4314.4,38.55679381]
[1757129154961,46.37093097,4314.5,4314.4,38.85033498]
[1757129155487,45.91393097,4314.5,4314.4,57.78633498]
[1757129155663,45.62723097,4314.5,4314.4,58.22394111]
[1757129155864,45.91393097,4314.5,4314.4,58.22394111]
[1757129156586,46.37093097,4314.5,4314.4,58.22394111]
[1757129158865,45.62723097,4314.5,4314.4,42.71054111]
[1757129159561,45.62723097,4314.5,4314.4,42.39754111]
[1757129159789,45.62723097,4314.5,4314.4,42.86834111]
[1757129162172,45.39110019,4314.5,4314.4,42.86834111]
[1757129165402,45.39110019,4314.5,4314.4,60.10234111]
[1757129165601,45.39110019,4314.5,4314.4,61.80434111]
[1757129166615,45.39110019,4314.5,4314.4,56.27234111]
[1757129166771,45.27110019,4314.5,4314.4,56.27234111]
[1757129167102,45.27110019,4314.5,4314.4,42.86834111]
[1757129167511,45.27110019,4314.5,4314.4,43.0915909]
[1757129169407,45.27110019,4314.5,4314.4,42.6207909]
[1757129169585,45.27110019,4314.5,4314.4,43.0500909]
[1757129174219,45.27110019,4314.5,4314.4,13.0500909]
[1757129174418,45.27110019,4314.5,4314.4,43.0500909]
[1757129175317,45.27110019,4314.5,4314.4,13.0500909]
[1757129175516,45.27110019,4314.5,4314.4,61.9860909]
[1757129176019,45.27110019,4314.5,4314.4,50.0710909]
[1757129177828,45.27110019,4314.5,4314.4,44.7520909]
[1757129177998,45.27110019,4314.5,4314.4,50.2200909]
[1757129178926,45.27110019,4314.5,4314.4,49.99684111]
[1757129182992,45.27110019,4314.5,4314.4,49.56754111]
[1757129183197,44.92419998,4314.5,4314.4,42.82684111]
[1757129183609,44.57729977,4314.5,4314.4,42.82684111]
[1757129184020,44.23039956,4314.5,4314.4,42.82684111]
[1757129184324,43.88349935,4314.5,4314.4,42.82684111]
[1757129184706,43.53659914,4314.5,4314.4,42.82684111]
[1757129185122,43.18969893,4314.5,4314.4,42.82684111]
[1757129185316,43.18969893,4314.5,4314.4,45.59184111]
[1757129185522,42.84279872,4314.5,4314.4,58.99384111]
[1757129185945,42.49595386,4314.5,4314.4,58.99384111]
[1757129186326,42.149109,4314.5,4314.4,58.99384111]
[1757129186646,42.149109,4314.5,4314.4,44.52884111]
[1757129186853,41.80226414,4314.5,4314.4,42.82684111]
[1757129187158,41.45541928,4314.5,4314.4,42.82684111]
[1757129187645,41.10857442,4314.5,4314.4,42.82684111]
[1757129188047,40.76172956,4314.5,4314.4,42.82684111]
[1757129188416,40.4148847,4314.5,4314.4,42.82684111]
[1757129188851,40.06803984,4314.5,4314.4,42.82684111]
[1757129189359,39.72119498,4314.5,4314.4,42.82684111]
[1757129189567,39.37435012,4314.5,4314.4,12.82684111]
[1757129189866,39.02750526,4314.5,4314.4,42.82684111]
[1757129190244,38.6806604,4314.5,4314.4,42.82684111]
[1757129190666,38.33381554,4314.5,4314.4,42.82684111]
[1757129191067,37.98697068,4314.5,4314.4,42.82684111]
[1757129191566,37.64012582,4314.5,4314.4,42.82684111]
[1757129191948,37.29328096,4314.5,4314.4,42.82684111]
[1757129192272,36.9464361,4314.5,4314.4,42.82684111]
[1757129192661,36.59958322,4314.5,4314.4,12.82684111]
[1757129192847,36.59958322,4314.5,4314.4,42.82684111]
[1757129193047,36.25273034,4314.5,4314.4,42.82684111]
[1757129193578,35.90587746,4314.5,4314.4,42.82684111]
[1757129193934,35.55902458,4314.5,4314.4,42.82684111]
[1757129194272,35.2121717,4314.5,4314.4,42.82684111]
[1757129194666,34.86531882,4314.5,4314.4,42.82684111]
[1757129195072,34.51846594,4314.5,4314.4,42.82684111]
[1757129195370,34.51846594,4314.5,4314.4,48.35684111]
[1757129195668,34.17161306,4314.5,4314.4,61.75784111]
[1757129195876,33.82476018,4314.5,4314.4,61.75784111]
[1757129196277,33.4779073,4314.5,4314.4,61.75784111]
[1757129196576,33.4779073,4314.5,4314.4,61.75684111]
[1757129196878,33.13105442,4314.5,4314.4,58.69829994]
[1757129197254,33.13105442,4314.5,4314.4,49.55129994]
[1757129197580,33.13105442,4314.5,4314.4,42.53229994]
[1757129198783,33.13105442,4314.5,4314.4,49.70229994]
[1757129199282,33.13105442,4314.5,4314.4,49.27299994]
[1757129199576,33.13105442,4314.5,4314.4,47.85239994]
[1757129199777,33.13105442,4314.5,4314.4,49.21509994]
[1757129201974,33.13105442,4314.5,4314.4,47.85239994]
[1757129202493,33.13105442,4314.5,4314.4,47.55239994]
[1757129203462,33.43845442,4314.5,4314.4,47.55239994]
[1757129203662,33.91335442,4314.5,4314.4,43.71439994]
[1757129203880,33.91335442,4314.5,4314.4,47.55239994]
[1757129204680,33.43845442,4314.5,4314.4,47.55239994]
[1757129204875,33.43045099,4314.5,4314.4,17.55239994]
[1757129205081,33.43045099,4314.5,4314.4,47.55239994]
[1757129205479,33.43045099,4314.5,4314.4,66.48239994]
[1757129205669,33.12305099,4314.5,4314.4,66.48239994]
[1757129205868,33.12305099,4314.5,4314.4,63.71739994]
[1757129206406,33.43045099,4314.5,4314.4,63.71739994]
[1757129207384,33.12305099,4314.5,4314.4,63.71739994]
[1757129207794,33.12305099,4314.5,4314.4,54.57139994]
[1757129207995,33.12305099,4314.5,4314.4,19.25339994]
[1757129208295,33.12305099,4314.5,4314.4,49.25339994]
[1757129209323,33.12305099,4314.5,4314.4,42.08339994]
[1757129210198,33.43045099,4314.5,4314.4,42.08339994]
[1757129211623,33.43045099,4314.5,4314.4,40.38239994]
[1757129212619,33.12305099,4314.5,4314.4,40.38239994]
[1757129214787,33.12305099,4314.5,4314.4,42.30890778]
[1757129215519,33.12305099,4314.5,4314.4,61.69970778]
[1757129215920,33.12305099,4314.5,4314.4,58.47390778]
[1757129216221,33.12305099,4314.5,4314.4,58.93470778]
[1757129216416,33.12305099,4314.5,4314.4,58.47390778]
[1757129217601,32.39144886,4314.5,4314.4,58.47390778]
[1757129217918,29.77244034,4314.5,4314.4,54.13923932]
[1757129218119,28.30923608,4314.5,4314.4,54.13923932]
[1757129218317,27.99294019,4314.5,4314.4,54.13923932]
[1757129218488,27.87432912,4314.5,4314.4,44.09153932]
[1757129220491,27.87432912,4314.5,4314.4,42.39053932]
[1757129221524,27.87432912,4314.5,4314.4,42.85133932]
[1757129221915,27.87432912,4314.5,4314.4,42.39053932]
[1757129223820,27.87432912,4314.5,4314.4,40.73923932]
[1757129224029,28.18172912,4314.5,4314.4,40.73923932]
[1757129224237,28.18172912,4314.5,4314.4,36.90123932]
[1757129224407,28.65662912,4314.5,4314.4,40.73823932]
[1757129225023,28.18172912,4314.5,4314.4,40.73823932]
[1757129225425,27.87432912,4314.5,4314.4,66.83823932]
[1757129225605,27.87432912,4314.5,4314.4,68.48953932]
[1757129226442,27.87432912,4314.5,4314.4,38.48953932]
[1757129226603,27.87432912,4314.5,4314.4,68.48953932]
[1757129227433,27.87432912,4314.5,4314.4,68.95033932]
[1757129227625,27.87432912,4314.5,4314.4,66.18533932]
[1757129229439,27.87432912,4314.5,4314.4,36.18533932]
[1757129229646,27.87432912,4314.5,4314.4,63.42033932]
[1757129232327,27.87432912,4314.5,4314.4,62.87790778]
[1757129232934,27.87432912,4314.5,4314.4,49.47790778]
[1757129233355,27.87432912,4314.5,4314.4,42.30790778]
[1757129234969,27.87432912,4314.5,4314.4,40.65660778]
[1757129235341,27.87432912,4314.5,4314.4,46.18660778]